[Event "*** MasterClass Titled Tuesday Blitz"]
[Site "Chess.com"]
[Date "2017.07.04"]
[Round "4"]
[White "charlescandycampbell"]
[Black "ChessNinja48"]
[Result "1/2-1/2"]
[WhiteElo "2126"]
[BlackElo "2296"]
[TimeControl "180+2"]
[EndTime "13:49:50 PDT"]
[Termination "Game drawn - insufficient material"]

1. d4 {[%clk 0:03:01.9]} 1... Nf6 {[%clk 0:03:00.6]} 2. Nf3 {[%clk 0:03:02.4]}
2... d5 {[%clk 0:03:00.6]} 3. c4 {[%clk 0:03:03.5]} 3... c6 {[%clk 0:03:01.6]}
4. cxd5 {[%clk 0:03:04.5]} 4... cxd5 {[%clk 0:03:02.7]} 5. Nc3 {[%clk
0:03:05.6]} 5... e6 {[%clk 0:03:02.2]} 6. Bf4 {[%clk 0:03:07]} 6... Bd6 {[%clk
0:03:00.4]} 7. Bxd6 {[%clk 0:03:08]} 7... Qxd6 {[%clk 0:03:01.1]} 8. e3 {[%clk
0:03:09.9]} 8... O-O {[%clk 0:03:01.9]} 9. Bd3 {[%clk 0:03:10.8]} 9... a6 {[%clk
0:02:59.9]} 10. O-O {[%clk 0:03:11.5]} 10... b5 {[%clk 0:03:00.6]} 11. Rc1
{[%clk 0:03:12.8]} 11... Bb7 {[%clk 0:03:01.4]} 12. a4 {[%clk 0:03:13.2]} 12...
b4 {[%clk 0:02:59.5]} 13. Nb1 {[%clk 0:03:13.9]} 13... Nbd7 {[%clk 0:02:58.6]}
14. Nbd2 {[%clk 0:03:14.4]} 14... Rfc8 {[%clk 0:02:56.3]} 15. Qe2 {[%clk
0:03:14.7]} 15... Nb6 {[%clk 0:02:27.3]} 16. a5 {[%clk 0:03:11.5]} 16... Nbd7
{[%clk 0:02:16.8]} 17. Nb3 {[%clk 0:03:04.9]} 17... Ne4 {[%clk 0:02:13.8]} 18.
Rfd1 {[%clk 0:02:59.6]} 18... h6 {[%clk 0:02:01]} 19. h3 {[%clk 0:03:00]} 19...
Rxc1 {[%clk 0:01:49.3]} 20. Rxc1 {[%clk 0:03:00.5]} 20... Rc8 {[%clk 0:01:51.2]}
21. Rxc8+ {[%clk 0:02:59.4]} 21... Bxc8 {[%clk 0:01:53.1]} 22. Qc2 {[%clk
0:03:00.4]} 22... Bb7 {[%clk 0:01:53.4]} 23. Bxe4 {[%clk 0:02:53.2]} 23... dxe4
{[%clk 0:01:54.3]} 24. Nfd2 {[%clk 0:02:54.2]} 24... f5 {[%clk 0:01:55]} 25. Nc5
{[%clk 0:02:52.1]} 25... Nxc5 {[%clk 0:01:46.6]} 26. dxc5 {[%clk 0:02:43.7]}
26... Qd3 {[%clk 0:01:37.4]} 27. Qxd3 {[%clk 0:02:33.6]} 27... exd3 {[%clk
0:01:39.3]} 28. f3 {[%clk 0:02:33.1]} 28... Kf7 {[%clk 0:01:33.9]} 29. Kf2
{[%clk 0:02:33.7]} 29... Ke7 {[%clk 0:01:29.4]} 30. g3 {[%clk 0:02:34.6]} 30...
g5 {[%clk 0:01:29.7]} 31. f4 {[%clk 0:02:30.1]} 31... Kd7 {[%clk 0:01:21.9]} 32.
fxg5 {[%clk 0:02:28.2]} 32... hxg5 {[%clk 0:01:23.8]} 33. h4 {[%clk 0:02:29.3]}
33... gxh4 {[%clk 0:01:25.7]} 34. gxh4 {[%clk 0:02:30.4]} 34... e5 {[%clk
0:01:20.7]} 35. Nc4 {[%clk 0:02:26.8]} 35... Ke6 {[%clk 0:01:20.7]} 36. h5
{[%clk 0:02:25.7]} 36... f4 {[%clk 0:01:07]} 37. exf4 {[%clk 0:02:25.9]} 37...
exf4 {[%clk 0:01:07.7]} 38. h6 {[%clk 0:02:24.7]} 38... Be4 {[%clk 0:01:08.3]}
39. Nd6 {[%clk 0:02:22.3]} 39... Bg6 {[%clk 0:01:02.1]} 40. Ne8 {[%clk
0:02:14.6]} 40... Kd5 {[%clk 0:00:59]} 41. h7 {[%clk 0:02:12.3]} 41... Bxh7
{[%clk 0:00:59.3]} 42. Nf6+ {[%clk 0:02:13.2]} 42... Kxc5 {[%clk 0:01:00.6]} 43.
Nxh7 {[%clk 0:02:14.1]} 43... Kc4 {[%clk 0:00:59.7]} 44. Ke1 {[%clk 0:02:13.4]}
44... f3 {[%clk 0:00:56.4]} 45. Ng5 {[%clk 0:02:12.3]} 45... f2+ {[%clk
0:00:54.7]} 46. Kxf2 {[%clk 0:02:13.3]} 46... Kb3 {[%clk 0:00:56]} 47. Ke3
{[%clk 0:02:13.1]} 47... Kxb2 {[%clk 0:00:50.9]} 48. Kxd3 {[%clk 0:02:14]} 48...
Ka3 {[%clk 0:00:52.2]} 49. Ne4 {[%clk 0:02:07.2]} 49... Ka4 {[%clk 0:00:53]} 50.
Nc5+ {[%clk 0:02:01.9]} 50... Kxa5 {[%clk 0:00:54]} 51. Kc4 {[%clk 0:02:02.7]}
51... Kb6 {[%clk 0:00:53]} 52. Kxb4 {[%clk 0:02:03.7]} 52... a5+ {[%clk
0:00:54.3]} 53. Kc4 {[%clk 0:02:04.8]} 53... a4 {[%clk 0:00:56.2]} 54. Nd3
{[%clk 0:02:02.8]} 54... a3 {[%clk 0:00:57.3]} 55. Kb3 {[%clk 0:02:03.7]} 55...
a2 {[%clk 0:00:59.2]} 56. Kxa2 {[%clk 0:02:04.9]} 1/2-1/2

[Event "*** MasterClass Titled Tuesday Blitz"]
[Site "Chess.com"]
[Date "2017.07.04"]
[Round "4"]
[White "ruvat"]
[Black "BigMak2500"]
[Result "0-1"]
[WhiteElo "2264"]
[BlackElo "2384"]
[TimeControl "180+2"]
[EndTime "13:50:00 PDT"]
[Termination "BigMak2500 won by resignation"]

1. d4 {[%clk 0:03:00.4]} 1... Nf6 {[%clk 0:03:00.2]} 2. c4 {[%clk 0:03:01.3]}
2... e6 {[%clk 0:03:01.2]} 3. g3 {[%clk 0:03:02]} 3... d5 {[%clk 0:03:00.3]} 4.
Nf3 {[%clk 0:03:03]} 4... Be7 {[%clk 0:03:01.3]} 5. Bg2 {[%clk 0:03:04.2]} 5...
O-O {[%clk 0:03:02.6]} 6. O-O {[%clk 0:03:05.9]} 6... dxc4 {[%clk 0:03:03.8]} 7.
Ne5 {[%clk 0:03:06.3]} 7... Nc6 {[%clk 0:03:03.8]} 8. Nxc6 {[%clk 0:03:06.6]}
8... bxc6 {[%clk 0:03:05.7]} 9. Na3 {[%clk 0:03:07.5]} 9... Bxa3 {[%clk
0:02:41.8]} 10. bxa3 {[%clk 0:03:09.4]} 10... Ba6 {[%clk 0:02:42.8]} 11. Qd2
{[%clk 0:03:02.1]} 11... Rb8 {[%clk 0:02:40.2]} 12. Qa5 {[%clk 0:02:44.1]} 12...
Qc8 {[%clk 0:02:40.6]} 13. a4 {[%clk 0:01:50.1]} 13... Rd8 {[%clk 0:02:37.3]}
14. Rd1 {[%clk 0:01:43.8]} 14... c3 {[%clk 0:02:38.1]} 15. e3 {[%clk 0:01:39.1]}
15... c2 {[%clk 0:02:32.3]} 16. Re1 {[%clk 0:01:29.6]} 16... Rb1 {[%clk
0:02:30.1]} 17. Bd2 {[%clk 0:01:29.8]} 17... Bd3 {[%clk 0:02:26.9]} 18. Qc3
{[%clk 0:01:21.4]} 18... Qa6 {[%clk 0:02:22.7]} 19. Bxc6 {[%clk 0:01:03.6]}
19... Rdb8 {[%clk 0:02:17.6]} 20. Bb5 {[%clk 0:01:03.4]} 20... Bxb5 {[%clk
0:01:55.9]} 21. axb5 {[%clk 0:01:05.3]} 21... Qxb5 {[%clk 0:00:39.8]} 22. Qxc2
{[%clk 0:01:01.9]} 22... Rb2 {[%clk 0:00:36]} 23. Qd1 {[%clk 0:00:42.4]} 23...
Ne4 {[%clk 0:00:33.3]} 24. Re2 {[%clk 0:00:26.9]} 24... Qd3 {[%clk 0:00:28.7]}
25. Bc1 {[%clk 0:00:14.5]} 25... Qxd1+ {[%clk 0:00:27.6]} 0-1

[Event "*** MasterClass Titled Tuesday Blitz"]
[Site "Chess.com"]
[Date "2017.07.04"]
[Round "4"]
[White "peteseeger"]
[Black "Aragon"]
[Result "1-0"]
[WhiteElo "2145"]
[BlackElo "2311"]
[TimeControl "180+2"]
[EndTime "13:50:08 PDT"]
[Termination "peteseeger won by resignation"]

1. e4 {[%clk 0:02:56.3]} 1... e6 {[%clk 0:02:59.6]} 2. b3 {[%clk 0:02:56.5]}
2... c5 {[%clk 0:02:59.1]} 3. Bb2 {[%clk 0:02:57]} 3... Nc6 {[%clk 0:03:00.3]}
4. Nf3 {[%clk 0:02:57.9]} 4... d6 {[%clk 0:03:00.5]} 5. d4 {[%clk 0:02:46]} 5...
cxd4 {[%clk 0:02:56.8]} 6. Nxd4 {[%clk 0:02:46.7]} 6... Nf6 {[%clk 0:02:57.2]}
7. Bd3 {[%clk 0:02:46.7]} 7... Qa5+ {[%clk 0:02:55.2]} 8. Nd2 {[%clk 0:02:41]}
8... Nb4 {[%clk 0:02:46.4]} 9. O-O {[%clk 0:02:39.1]} 9... Nxd3 {[%clk
0:02:46.6]} 10. cxd3 {[%clk 0:02:40.1]} 10... Be7 {[%clk 0:02:46.1]} 11. f4
{[%clk 0:02:32.2]} 11... Nd7 {[%clk 0:02:40.8]} 12. Nc4 {[%clk 0:02:28.6]} 12...
Qc5 {[%clk 0:02:38.3]} 13. Kh1 {[%clk 0:02:25.6]} 13... b5 {[%clk 0:02:31.8]}
14. Ne3 {[%clk 0:02:13.2]} 14... O-O {[%clk 0:02:29.6]} 15. Rc1 {[%clk
0:02:12.7]} 15... Qb6 {[%clk 0:02:27.7]} 16. Nc6 {[%clk 0:01:30.5]} 16... Bf6
{[%clk 0:02:22]} 17. Bxf6 {[%clk 0:01:15.2]} 17... Nxf6 {[%clk 0:02:22.4]} 18.
Ne7+ {[%clk 0:01:08]} 18... Kh8 {[%clk 0:02:22.7]} 19. Nxc8 {[%clk 0:01:09.4]}
19... Raxc8 {[%clk 0:02:23.2]} 20. Qd2 {[%clk 0:01:10]} 20... Qd4 {[%clk
0:02:04.9]} 21. h3 {[%clk 0:01:09.2]} 21... d5 {[%clk 0:02:02.5]} 22. Nc2 {[%clk
0:00:56.5]} 22... Qb6 {[%clk 0:01:25.6]} 23. e5 {[%clk 0:00:56.5]} 23... Nd7
{[%clk 0:01:22.7]} 24. d4 {[%clk 0:00:56.3]} 24... Rc7 {[%clk 0:01:15.9]} 25.
Ne3 {[%clk 0:00:55.2]} 25... Rfc8 {[%clk 0:01:15.8]} 26. Rxc7 {[%clk 0:00:54.6]}
26... Qxc7 {[%clk 0:01:17]} 27. f5 {[%clk 0:00:54.6]} 27... Qc3 {[%clk
0:01:17.1]} 28. Qxc3 {[%clk 0:00:48.4]} 28... Rxc3 {[%clk 0:01:17.3]} 29. fxe6
{[%clk 0:00:49.3]} 29... fxe6 {[%clk 0:01:17.3]} 30. Rf7 {[%clk 0:00:49.5]}
30... Rc7 {[%clk 0:00:57.4]} 31. Nxd5 {[%clk 0:00:46.5]} 31... exd5 {[%clk
0:00:55.8]} 32. e6 {[%clk 0:00:47.6]} 32... Rc1+ {[%clk 0:00:56.7]} 33. Kh2
{[%clk 0:00:47.9]} 33... Nf6 {[%clk 0:00:55]} 34. e7 {[%clk 0:00:48.7]} 34...
Re1 {[%clk 0:00:53.1]} 35. Rf8+ {[%clk 0:00:47.9]} 35... Ng8 {[%clk 0:00:53.4]}
36. e8=Q {[%clk 0:00:49]} 36... Rxe8 {[%clk 0:00:54.2]} 37. Rxe8 {[%clk
0:00:49.8]} 37... g6 {[%clk 0:00:56.1]} 38. Ra8 {[%clk 0:00:49]} 38... Kg7
{[%clk 0:00:56]} 39. Rxa7+ {[%clk 0:00:50]} 39... Kf6 {[%clk 0:00:57.5]} 40. Rb7
{[%clk 0:00:50.7]} 40... Ne7 {[%clk 0:00:57.9]} 41. Rxb5 {[%clk 0:00:51]} 41...
Ke6 {[%clk 0:00:59.4]} 42. Rb6+ {[%clk 0:00:49]} 42... Kd7 {[%clk 0:00:59.5]}
43. Rb7+ {[%clk 0:00:49.7]} 43... Kd6 {[%clk 0:01:00.5]} 44. Rxe7 {[%clk
0:00:50.4]} 1-0

[Event "*** MasterClass Titled Tuesday Blitz"]
[Site "Chess.com"]
[Date "2017.07.04"]
[Round "4"]
[White "PlotnikovPavel"]
[Black "Fandorine"]
[Result "0-1"]
[WhiteElo "2457"]
[BlackElo "2664"]
[TimeControl "180+2"]
[EndTime "13:50:16 PDT"]
[Termination "Fandorine won by resignation"]

1. d4 {[%clk 0:02:58.2]} 1... Nf6 {[%clk 0:02:59.7]} 2. c4 {[%clk 0:02:59.4]}
2... e6 {[%clk 0:02:55.9]} 3. Nc3 {[%clk 0:03:00.4]} 3... c5 {[%clk 0:02:57.1]}
4. d5 {[%clk 0:02:59.1]} 4... d6 {[%clk 0:02:55.3]} 5. e4 {[%clk 0:02:57.7]}
5... g6 {[%clk 0:02:54.2]} 6. Nf3 {[%clk 0:02:57]} 6... Bg7 {[%clk 0:02:53.8]}
7. Bd3 {[%clk 0:02:55.7]} 7... O-O {[%clk 0:02:53.7]} 8. O-O {[%clk 0:02:56.8]}
8... exd5 {[%clk 0:02:54.7]} 9. exd5 {[%clk 0:02:57.1]} 9... Bg4 {[%clk
0:02:55.6]} 10. Bf4 {[%clk 0:02:56.9]} 10... Nh5 {[%clk 0:02:52.9]} 11. Bg3
{[%clk 0:02:46.9]} 11... Nxg3 {[%clk 0:02:52.2]} 12. hxg3 {[%clk 0:02:48.8]}
12... Nd7 {[%clk 0:02:51.2]} 13. Ne4 {[%clk 0:02:42.3]} 13... Ne5 {[%clk
0:02:51.7]} 14. Rb1 {[%clk 0:02:36.3]} 14... Bxf3 {[%clk 0:02:41.6]} 15. gxf3
{[%clk 0:02:36.5]} 15... f5 {[%clk 0:02:43.5]} 16. Nc3 {[%clk 0:02:32.7]} 16...
f4 {[%clk 0:02:42.3]} 17. Kg2 {[%clk 0:02:22.2]} 17... a6 {[%clk 0:02:23]} 18.
a4 {[%clk 0:02:12.3]} 18... fxg3 {[%clk 0:02:10.6]} 19. fxg3 {[%clk 0:02:12.5]}
19... Qd7 {[%clk 0:01:56]} 20. Be2 {[%clk 0:02:06.8]} 20... g5 {[%clk 0:01:47]}
21. f4 {[%clk 0:02:00.5]} 21... gxf4 {[%clk 0:01:46.4]} 22. gxf4 {[%clk
0:02:00.1]} 22... Ng6 {[%clk 0:01:47.9]} 23. Bg4 {[%clk 0:01:59.4]} 23... Qe7
{[%clk 0:01:43.7]} 24. Be6+ {[%clk 0:02:00.6]} 24... Kh8 {[%clk 0:01:42.5]} 25.
Qg4 {[%clk 0:02:00.1]} 25... Qf6 {[%clk 0:01:31.3]} 26. f5 {[%clk 0:01:41]}
26... Ne5 {[%clk 0:01:25.9]} 27. Qh5 {[%clk 0:01:40.9]} 27... Nxc4 {[%clk
0:01:23.3]} 28. Ne4 {[%clk 0:01:28.4]} 28... Qd4 {[%clk 0:00:51.1]} 29. Ng5
{[%clk 0:00:44.6]} 29... h6 {[%clk 0:00:51.3]} 30. Qg6 {[%clk 0:00:33.7]} 30...
Qg4+ {[%clk 0:00:42.1]} 31. Kf2 {[%clk 0:00:20]} 31... Bd4+ {[%clk 0:00:42.3]}
32. Ke1 {[%clk 0:00:20.8]} 32... Qg3+ {[%clk 0:00:40.4]} 33. Ke2 {[%clk
0:00:19.5]} 33... Qe3+ {[%clk 0:00:40.4]} 0-1

[Event "*** MasterClass Titled Tuesday Blitz"]
[Site "Chess.com"]
[Date "2017.07.04"]
[Round "4"]
[White "AaronGrabinsky_SPICE"]
[Black "jeaston1"]
[Result "0-1"]
[WhiteElo "2057"]
[BlackElo "2045"]
[TimeControl "180+2"]
[EndTime "13:50:24 PDT"]
[Termination "jeaston1 won by resignation"]

1. d4 {[%clk 0:02:54.7]} 1... d5 {[%clk 0:02:59]} 2. c4 {[%clk 0:02:54.9]} 2...
dxc4 {[%clk 0:03:00.8]} 3. Nf3 {[%clk 0:02:54]} 3... Nf6 {[%clk 0:03:01.1]} 4.
e3 {[%clk 0:02:54.7]} 4... e6 {[%clk 0:03:02.5]} 5. Bxc4 {[%clk 0:02:55.2]} 5...
a6 {[%clk 0:03:04.1]} 6. O-O {[%clk 0:02:56]} 6... b5 {[%clk 0:03:05.4]} 7. Bb3
{[%clk 0:02:56.5]} 7... Bb7 {[%clk 0:03:06.5]} 8. Qe2 {[%clk 0:02:56.9]} 8...
Nbd7 {[%clk 0:03:07.9]} 9. Rd1 {[%clk 0:02:57.2]} 9... c5 {[%clk 0:03:08.8]} 10.
dxc5 {[%clk 0:02:54.3]} 10... Bxc5 {[%clk 0:03:08.9]} 11. Nc3 {[%clk 0:02:55]}
11... O-O {[%clk 0:03:09.2]} 12. e4 {[%clk 0:02:52.1]} 12... Qc7 {[%clk
0:02:53.8]} 13. Bg5 {[%clk 0:02:23.8]} 13... Ng4 {[%clk 0:02:46.3]} 14. Bh4
{[%clk 0:02:22.2]} 14... Nde5 {[%clk 0:02:30.1]} 15. Bg3 {[%clk 0:02:19.1]}
15... Bd6 {[%clk 0:02:26.3]} 16. Rac1 {[%clk 0:01:55.7]} 16... Qb8 {[%clk
0:02:03.2]} 17. Kh1 {[%clk 0:01:21.8]} 17... Rd8 {[%clk 0:01:50.7]} 18. h3
{[%clk 0:01:16.6]} 18... Nxf3 {[%clk 0:01:39.8]} 19. Rxd6 {[%clk 0:01:09.1]}
19... Rxd6 {[%clk 0:01:37.8]} 20. Qxf3 {[%clk 0:01:10.3]} 20... Nf6 {[%clk
0:01:24.2]} 21. Bxd6 {[%clk 0:00:44.4]} 21... Qxd6 {[%clk 0:01:24.2]} 22. Rd1
{[%clk 0:00:46.3]} 22... Qb4 {[%clk 0:01:13.3]} 23. Re1 {[%clk 0:00:32.7]} 23...
Rd8 {[%clk 0:01:05.3]} 24. Rd1 {[%clk 0:00:31.9]} 24... Rxd1+ {[%clk 0:01:03.4]}
25. Qxd1 {[%clk 0:00:33.8]} 25... Nxe4 {[%clk 0:00:45.1]} 26. Nxe4 {[%clk
0:00:23.9]} 26... Bxe4 {[%clk 0:00:44.9]} 27. Qd8+ {[%clk 0:00:25.8]} 27... Qf8
{[%clk 0:00:45.1]} 28. Qb6 {[%clk 0:00:27.7]} 28... Qa8 {[%clk 0:00:44.4]} 29.
f3 {[%clk 0:00:27.5]} 29... Bd5 {[%clk 0:00:44.4]} 30. Bxd5 {[%clk 0:00:26.5]}
30... exd5 {[%clk 0:00:45.7]} 31. Kg1 {[%clk 0:00:25.5]} 31... h6 {[%clk
0:00:45.4]} 32. Kf2 {[%clk 0:00:26.6]} 32... Kh7 {[%clk 0:00:38.4]} 33. Ke3
{[%clk 0:00:27.2]} 33... Qe8+ {[%clk 0:00:38.8]} 34. Kd2 {[%clk 0:00:26.4]}
34... Qe6 {[%clk 0:00:33.5]} 35. Qd4 {[%clk 0:00:21.2]} 35... Qg6 {[%clk
0:00:34.3]} 36. Qc3 {[%clk 0:00:17.2]} 36... Qxg2+ {[%clk 0:00:34.7]} 0-1

[Event "*** MasterClass Titled Tuesday Blitz"]
[Site "Chess.com"]
[Date "2017.07.04"]
[Round "4"]
[White "Aguiar94"]
[Black "wonderfultime"]
[Result "0-1"]
[WhiteElo "2415"]
[BlackElo "2660"]
[TimeControl "180+2"]
[EndTime "13:50:28 PDT"]
[Termination "wonderfultime won by resignation"]

1. e4 {[%clk 0:00:53.5]} 1... c5 {[%clk 0:02:59.7]} 2. Nf3 {[%clk 0:00:54]} 2...
d6 {[%clk 0:03:00.4]} 3. d4 {[%clk 0:00:55.1]} 3... cxd4 {[%clk 0:03:02.3]} 4.
Nxd4 {[%clk 0:00:57]} 4... Nf6 {[%clk 0:03:03.5]} 5. Nc3 {[%clk 0:00:58.2]} 5...
g6 {[%clk 0:03:05.1]} 6. Be3 {[%clk 0:00:58.1]} 6... Bg7 {[%clk 0:03:06.5]} 7.
f3 {[%clk 0:00:59.4]} 7... O-O {[%clk 0:03:08]} 8. Qd2 {[%clk 0:01:00.8]} 8...
Nc6 {[%clk 0:03:09.4]} 9. O-O-O {[%clk 0:01:02.4]} 9... d5 {[%clk 0:03:10.5]}
10. exd5 {[%clk 0:01:02.8]} 10... Nxd5 {[%clk 0:03:11.5]} 11. Nxc6 {[%clk
0:01:03.8]} 11... bxc6 {[%clk 0:03:13.4]} 12. Nxd5 {[%clk 0:01:05.6]} 12... cxd5
{[%clk 0:03:04.1]} 13. Qxd5 {[%clk 0:01:07.5]} 13... Qc7 {[%clk 0:03:03.3]} 14.
Qc5 {[%clk 0:01:08.4]} 14... Qb7 {[%clk 0:02:06.4]} 15. b3 {[%clk 0:01:09.7]}
15... Bf5 {[%clk 0:01:56.5]} 16. Bd3 {[%clk 0:01:10.9]} 16... Rac8 {[%clk
0:01:50.7]} 17. Qa5 {[%clk 0:01:12.1]} 17... Rc3 {[%clk 0:01:43.1]} 18. Bxf5
{[%clk 0:01:12.5]} 18... Rxe3 {[%clk 0:01:41.7]} 19. Be4 {[%clk 0:01:14.4]}
19... Qb8 {[%clk 0:01:40.5]} 20. g3 {[%clk 0:01:16.3]} 20... Qc8 {[%clk
0:01:28.4]} 21. g4 {[%clk 0:01:16.1]} 21... Qe6 {[%clk 0:01:23.8]} 22. g5 {[%clk
0:01:17.3]} 22... h5 {[%clk 0:01:24.6]} 23. Rd8 {[%clk 0:00:47.7]} 23... Rxd8
{[%clk 0:01:15.7]} 24. Qxd8+ {[%clk 0:00:49.6]} 24... Kh7 {[%clk 0:01:17.6]} 25.
Qa5 {[%clk 0:00:51.5]} 25... Re2 {[%clk 0:01:09.3]} 26. Qb5 {[%clk 0:00:28.2]}
26... Rg2 {[%clk 0:01:05.5]} 27. Qf1 {[%clk 0:00:23.6]} 27... Rxg5 {[%clk
0:00:59.7]} 28. f4 {[%clk 0:00:15.8]} 28... Ra5 {[%clk 0:00:52.8]} 29. Qf3
{[%clk 0:00:16.9]} 29... Rxa2 {[%clk 0:00:53.2]} 30. f5 {[%clk 0:00:16]} 30...
Qe5 {[%clk 0:00:42.1]} 31. Qxh5+ {[%clk 0:00:06.9]} 0-1

[Event "*** MasterClass Titled Tuesday Blitz"]
[Site "Chess.com"]
[Date "2017.07.04"]
[Round "4"]
[White "AkshatChandra"]
[Black "GMKrikor"]
[Result "1-0"]
[WhiteElo "2657"]
[BlackElo "2467"]
[TimeControl "180+2"]
[EndTime "13:50:32 PDT"]
[Termination "AkshatChandra won by resignation"]

1. d4 {[%clk 0:03:01.9]} 1... Nf6 {[%clk 0:03:00.5]} 2. Nf3 {[%clk 0:02:55.9]}
2... e6 {[%clk 0:03:01.8]} 3. Bf4 {[%clk 0:02:56.3]} 3... d5 {[%clk 0:02:57.5]}
4. e3 {[%clk 0:02:57.5]} 4... c5 {[%clk 0:02:58.8]} 5. c3 {[%clk 0:02:58.9]}
5... Nc6 {[%clk 0:02:59.5]} 6. Nbd2 {[%clk 0:02:59.7]} 6... cxd4 {[%clk
0:02:59.1]} 7. exd4 {[%clk 0:03:00.3]} 7... Nh5 {[%clk 0:02:59.9]} 8. Be3 {[%clk
0:03:00.7]} 8... Bd6 {[%clk 0:03:00.8]} 9. Ne5 {[%clk 0:03:01.8]} 9... g6 {[%clk
0:02:45.8]} 10. g4 {[%clk 0:03:03]} 10... Nf6 {[%clk 0:02:37.8]} 11. f4 {[%clk
0:02:36.3]} 11... Nd7 {[%clk 0:02:36.9]} 12. Bd3 {[%clk 0:02:32.8]} 12... O-O
{[%clk 0:02:19.5]} 13. h4 {[%clk 0:02:32.2]} 13... f6 {[%clk 0:02:20.6]} 14.
Nxd7 {[%clk 0:02:25.4]} 14... Bxd7 {[%clk 0:02:21.7]} 15. Qf3 {[%clk 0:01:57.2]}
15... Rc8 {[%clk 0:01:43.4]} 16. f5 {[%clk 0:01:54.9]} 16... Ne7 {[%clk
0:01:38.2]} 17. fxg6 {[%clk 0:01:50.6]} 17... Nxg6 {[%clk 0:01:37.8]} 18. h5
{[%clk 0:01:49.6]} 18... Ne7 {[%clk 0:01:37.8]} 19. Bh6 {[%clk 0:01:40]} 19...
Rf7 {[%clk 0:01:34.6]} 20. O-O {[%clk 0:01:34.4]} 20... Kh8 {[%clk 0:01:23.6]}
21. Kh1 {[%clk 0:01:30]} 21... e5 {[%clk 0:01:16.7]} 22. dxe5 {[%clk 0:01:26.2]}
22... Bxe5 {[%clk 0:01:17.8]} 23. Rae1 {[%clk 0:01:26.3]} 23... Nc6 {[%clk
0:00:58.6]} 24. g5 {[%clk 0:01:21.2]} 24... Be6 {[%clk 0:00:41.5]} 25. g6 {[%clk
0:01:16.6]} 25... Rd7 {[%clk 0:00:31]} 26. Rg1 {[%clk 0:01:04.5]} 26... Rcc7
{[%clk 0:00:26.6]} 27. Rg2 {[%clk 0:00:59.4]} 27... d4 {[%clk 0:00:19.9]} 28. c4
{[%clk 0:00:56.9]} 28... hxg6 {[%clk 0:00:11.1]} 29. hxg6 {[%clk 0:00:57.6]}
29... Kg8 {[%clk 0:00:12.3]} 30. g7 {[%clk 0:00:54.6]} 30... Qe8 {[%clk
0:00:13.7]} 31. Ne4 {[%clk 0:00:52.5]} 31... Rf7 {[%clk 0:00:12.6]} 32. Qh5
{[%clk 0:00:47.6]} 32... Ne7 {[%clk 0:00:10.3]} 33. Nxf6+ {[%clk 0:00:34.8]}
33... Bxf6 {[%clk 0:00:10.2]} 34. Bh7+ {[%clk 0:00:36.3]} 34... Kxh7 {[%clk
0:00:10.1]} 35. Bc1+ {[%clk 0:00:38]} 1-0

[Event "*** MasterClass Titled Tuesday Blitz"]
[Site "Chess.com"]
[Date "2017.07.04"]
[Round "4"]
[White "Muisback26"]
[Black "Tonychess32"]
[Result "1-0"]
[WhiteElo "2616"]
[BlackElo "2450"]
[TimeControl "180+2"]
[EndTime "13:50:38 PDT"]
[Termination "Muisback26 won on time"]

1. e4 {[%clk 0:03:01.9]} 1... e5 {[%clk 0:03:00.3]} 2. Nf3 {[%clk 0:03:02.4]}
2... Nc6 {[%clk 0:03:01.7]} 3. Bc4 {[%clk 0:03:03]} 3... Bc5 {[%clk 0:03:01.7]}
4. c3 {[%clk 0:03:03.3]} 4... Nf6 {[%clk 0:03:02.8]} 5. d3 {[%clk 0:03:04.2]}
5... d6 {[%clk 0:03:02.7]} 6. a4 {[%clk 0:03:04.7]} 6... a6 {[%clk 0:03:03.8]}
7. Bg5 {[%clk 0:03:05]} 7... h6 {[%clk 0:03:04.1]} 8. Bh4 {[%clk 0:03:05.7]}
8... O-O {[%clk 0:03:03.1]} 9. Nbd2 {[%clk 0:03:05.2]} 9... Ba7 {[%clk
0:02:55.8]} 10. Qc2 {[%clk 0:03:00.3]} 10... Be6 {[%clk 0:02:49.4]} 11. O-O-O
{[%clk 0:02:57.7]} 11... Rb8 {[%clk 0:02:45.2]} 12. Bd5 {[%clk 0:02:56.3]} 12...
Re8 {[%clk 0:02:07.7]} 13. g4 {[%clk 0:02:53]} 13... Bxg4 {[%clk 0:01:28.2]} 14.
Rhg1 {[%clk 0:02:50.6]} 14... Be6 {[%clk 0:01:28.5]} 15. d4 {[%clk 0:02:44.7]}
15... Kf8 {[%clk 0:01:25.9]} 16. dxe5 {[%clk 0:02:44.7]} 16... Nxe5 {[%clk
0:01:24.5]} 17. Nxe5 {[%clk 0:02:37.9]} 17... dxe5 {[%clk 0:01:25.5]} 18. Nc4
{[%clk 0:02:39]} 18... Qe7 {[%clk 0:01:15.7]} 19. f4 {[%clk 0:02:02.1]} 19...
Bxg1 {[%clk 0:01:03]} 20. fxe5 {[%clk 0:02:02.4]} 20... g5 {[%clk 0:01:00.1]}
21. exf6 {[%clk 0:02:02.7]} 21... Qc5 {[%clk 0:00:55.2]} 22. e5 {[%clk
0:01:41.7]} 22... Kg8 {[%clk 0:00:38.7]} 23. b4 {[%clk 0:01:41.7]} 23... Qxd5
{[%clk 0:00:17]} 24. Rxd5 {[%clk 0:01:40.7]} 24... Bxd5 {[%clk 0:00:18.9]} 25.
Bxg5 {[%clk 0:01:31.6]} 25... hxg5 {[%clk 0:00:16.5]} 26. Qf5 {[%clk 0:01:32.7]}
26... Be4 {[%clk 0:00:05]} 27. Qxe4 {[%clk 0:01:31.3]} 27... Re6 {[%clk
0:00:04.5]} 28. Qg4 {[%clk 0:01:29.5]} 28... Kf8 {[%clk 0:00:04.8]} 29. Qxg1
{[%clk 0:01:28.9]} 29... Rd8 {[%clk 0:00:05.8]} 30. Qxg5 {[%clk 0:01:21.1]}
30... Rc6 {[%clk 0:00:06.9]} 31. e6 {[%clk 0:01:14.7]} 31... Rxe6 {[%clk
0:00:06.5]} 32. Qg7+ {[%clk 0:01:14.7]} 32... Ke8 {[%clk 0:00:07.8]} 33. Qg8+
{[%clk 0:01:14.8]} 33... Kd7 {[%clk 0:00:09.1]} 34. Qxf7+ {[%clk 0:01:14.4]} 1-0